[Event "Titled Tuesday Blitz December 20 Early 2022"]
[White "Wild, Achim"]
[Black "Derybas, Igor"]
[WhiteFideId "4658728"]
[BlackFideId "41846400"]
[WhiteElo "2265"]
[BlackElo "1490"]
[Result "0-1"]
[Round "04"]
[TimeControl "180+2"]
[Date "2022.12.20"]
[WhiteClock "0:00:12"]
[BlackClock "0:00:08"]

1. a3 {[%clk 0:02:59]}  Nf6 {[%clk 0:02:56]} 2. Nf3 {[%clk 0:02:59]}  d5 {[%clk 0:02:55]} 3. d4 {[%clk 0:02:58]}  Bg4 {[%clk 0:02:53]} 4. e3 {[%clk 0:02:57]}  Nc6 {[%clk 0:02:50]} 5. h3 {[%clk 0:02:55]}  Bxf3 {[%clk 0:02:49]} 6. Qxf3 {[%clk 0:02:55]}  e5 {[%clk 0:02:50]} 7. dxe5 {[%clk 0:02:54]}  Nxe5 {[%clk 0:02:50]} 8. Qd1 {[%clk 0:02:54]}  Bd6 {[%clk 0:02:49]} 9. Be2 {[%clk 0:02:52]}  O-O {[%clk 0:02:47]} 10. O-O {[%clk 0:02:51]}  c6 {[%clk 0:02:44]} 11. b3 {[%clk 0:02:44]}  Ne4 {[%clk 0:02:38]} 12. Bb2 {[%clk 0:02:44]}  Qf6 {[%clk 0:02:37]} 13. Ra2 {[%clk 0:02:28]}  Qg6 {[%clk 0:02:27]} 14. Nd2 {[%clk 0:02:22]}  Ng5 {[%clk 0:02:27]} 15. Kh1 {[%clk 0:01:58]}  Rfe8 {[%clk 0:02:21]} 16. f4 {[%clk 0:01:47]}  Nxh3 {[%clk 0:02:03]} 17. gxh3 {[%clk 0:01:37]}  Qg3 {[%clk 0:01:59]} 18. Bg4 {[%clk 0:01:15]}  Nxg4 {[%clk 0:01:46]} 19. Qxg4 {[%clk 0:01:14]}  Qxg4 {[%clk 0:01:46]} 20. hxg4 {[%clk 0:01:15]}  Rxe3 {[%clk 0:01:47]} 21. Rf2 {[%clk 0:01:06]}  Rae8 {[%clk 0:01:40]} 22. Kg2 {[%clk 0:00:58]}  Re2 {[%clk 0:01:37]} 23. Be5 {[%clk 0:00:42]}  Rxf2+ {[%clk 0:01:32]} 24. Kxf2 {[%clk 0:00:43]}  Bxe5 {[%clk 0:01:28]} 25. fxe5 {[%clk 0:00:43]}  Rxe5 {[%clk 0:01:29]} 26. c4 {[%clk 0:00:41]}  h5 {[%clk 0:01:22]} 27. Nf3 {[%clk 0:00:38]}  Re4 {[%clk 0:01:14]} 28. gxh5 {[%clk 0:00:34]}  dxc4 {[%clk 0:01:13]} 29. bxc4 {[%clk 0:00:29]}  Rxc4 {[%clk 0:01:13]} 30. Rb2 {[%clk 0:00:26]}  b5 {[%clk 0:01:12]} 31. Rb4 {[%clk 0:00:24]}  Rc2+ {[%clk 0:01:08]} 32. Kg3 {[%clk 0:00:22]}  Rc3 {[%clk 0:01:08]} 33. a4 {[%clk 0:00:22]}  a5 {[%clk 0:01:08]} 34. Rg4 {[%clk 0:00:20]}  b4 {[%clk 0:01:03]} 35. Kf2 {[%clk 0:00:19]}  c5 {[%clk 0:00:57]} 36. Ke2 {[%clk 0:00:17]}  Ra3 {[%clk 0:00:52]} 37. Rc4 {[%clk 0:00:16]}  Rxa4 {[%clk 0:00:38]} 38. Rxc5 {[%clk 0:00:16]}  Ra2+ {[%clk 0:00:39]} 39. Kd3 {[%clk 0:00:12]}  f6 {[%clk 0:00:29]} 40. Nd4 {[%clk 0:00:07]}  a4 {[%clk 0:00:29]} 41. Rc7 {[%clk 0:00:05]}  Rh2 {[%clk 0:00:23]} 42. Ra7 {[%clk 0:00:01]}  Rh3+ {[%clk 0:00:20]} 43. Kc4 {[%clk 0:00:01]}  b3 {[%clk 0:00:20]} 44. Rxa4 {[%clk 0:00:01]}  b2 {[%clk 0:00:20]} 45. Rb4 {[%clk 0:00:01]}  Rh2 {[%clk 0:00:20]} 46. Kc3 {[%clk 0:00:01]}  Rh3+ {[%clk 0:00:10]} 47. Kc4 {[%clk 0:00:01]}  Rxh5 {[%clk 0:00:09]} 48. Rxb2 {[%clk 0:00:01]}  Rh4 {[%clk 0:00:09]} 49. Re2 {[%clk 0:00:02]}  Kh7 {[%clk 0:00:09]} 50. Kd3 {[%clk 0:00:03]}  Rh3+ {[%clk 0:00:09]} 51. Re3 {[%clk 0:00:03]}  Rh1 {[%clk 0:00:09]} 52. Rf3 {[%clk 0:00:04]}  Kh6 {[%clk 0:00:08]} 53. Ke3 {[%clk 0:00:05]}  Re1+ {[%clk 0:00:07]} 54. Ne2 {[%clk 0:00:05]}  Ra1 {[%clk 0:00:07]} 55. Kf2 {[%clk 0:00:05]}  Kg6 {[%clk 0:00:05]} 56. Rh3 {[%clk 0:00:06]}  Kf7 {[%clk 0:00:04]} 57. Rf3 {[%clk 0:00:07]}  g5 {[%clk 0:00:04]} 58. Kg2 {[%clk 0:00:07]}  Kg6 {[%clk 0:00:04]} 59. Kf2 {[%clk 0:00:08]}  f5 {[%clk 0:00:04]} 60. Rd3 {[%clk 0:00:08]}  Ra2 {[%clk 0:00:04]} 61. Rd6+ {[%clk 0:00:08]}  Kh5 {[%clk 0:00:04]} 62. Rd5 {[%clk 0:00:09]}  f4 {[%clk 0:00:04]} 63. Kf3 {[%clk 0:00:09]}  Ra3+ {[%clk 0:00:04]} 64. Ke4 {[%clk 0:00:09]}  Kg4 {[%clk 0:00:04]} 65. Nxf4 {[%clk 0:00:10]}  Ra4+ {[%clk 0:00:04]} 66. Ke3 {[%clk 0:00:09]}  gxf4+ {[%clk 0:00:04]} 67. Kf2 {[%clk 0:00:10]}  Ra2+ {[%clk 0:00:05]} 68. Kf1 {[%clk 0:00:10]}  Kg3 {[%clk 0:00:05]} 69. Rg5+ {[%clk 0:00:10]}  Kf3 {[%clk 0:00:06]} 70. Kg1 {[%clk 0:00:11]}  Ra1+ {[%clk 0:00:06]} 71. Kh2 {[%clk 0:00:11]}  Kf2 {[%clk 0:00:06]} 72. Rg2+ {[%clk 0:00:11]}  Ke3 {[%clk 0:00:06]} 73. Rb2 {[%clk 0:00:11]}  Ra3 {[%clk 0:00:04]} 74. Kg1 {[%clk 0:00:11]}  f3 {[%clk 0:00:05]} 75. Rb1 {[%clk 0:00:10]}  Kf4 {[%clk 0:00:05]} 76. Kf2 {[%clk 0:00:10]}  Ra2+ {[%clk 0:00:05]} 77. Kg1 {[%clk 0:00:11]}  Kg3 {[%clk 0:00:05]} 78. Kh1 {[%clk 0:00:11]}  Rh2+ {[%clk 0:00:05]} 79. Kg1 {[%clk 0:00:11]}  f2+ {[%clk 0:00:06]} 80. Kf1 {[%clk 0:00:11]}  Rh1+ {[%clk 0:00:07]} 81. Ke2 {[%clk 0:00:12]}  Rxb1 {[%clk 0:00:08]} 0-1


[Site "https://www.chess.com"]

[Event "Titled Tuesday Blitz December 20 Early 2022"]
[White "Willi_Skibbe"]
[Black "Cag, Ceyda"]
[BlackFideId "34571477"]
[WhiteElo "2346"]
[BlackElo "2157"]
[Result "1-0"]
[Round "04"]
[TimeControl "180+2"]
[Date "2022.12.20"]
[WhiteClock "0:00:35"]
[BlackClock "0:00:25"]

1. c4 {[%clk 0:03:00]}  e5 {[%clk 0:02:58]} 2. Nc3 {[%clk 0:02:59]}  Bc5 {[%clk 0:02:57]} 3. Nf3 {[%clk 0:02:57]}  d6 {[%clk 0:02:55]} 4. e3 {[%clk 0:02:56]}  a6 {[%clk 0:02:50]} 5. d4 {[%clk 0:02:55]}  exd4 {[%clk 0:02:50]} 6. exd4 {[%clk 0:02:56]}  Ba7 {[%clk 0:02:50]} 7. Bd3 {[%clk 0:02:57]}  Nc6 {[%clk 0:02:45]} 8. d5 {[%clk 0:02:50]}  Ne5 {[%clk 0:02:40]} 9. Nxe5 {[%clk 0:02:48]}  dxe5 {[%clk 0:02:41]} 10. O-O {[%clk 0:02:48]}  Ne7 {[%clk 0:02:39]} 11. Qh5 {[%clk 0:02:31]}  g6 {[%clk 0:02:13]} 12. Qh6 {[%clk 0:02:27]}  Bf5 {[%clk 0:02:10]} 13. Ne4 {[%clk 0:02:11]}  Bxe4 {[%clk 0:02:08]} 14. Bxe4 {[%clk 0:02:10]}  Qd6 {[%clk 0:02:04]} 15. Bg5 {[%clk 0:01:29]}  O-O-O {[%clk 0:01:45]} 16. Qg7 {[%clk 0:01:29]}  Rhf8 {[%clk 0:01:19]} 17. Qf6 {[%clk 0:01:21]}  Ng8 {[%clk 0:01:05]} 18. Qxd6 {[%clk 0:00:54]}  Rxd6 {[%clk 0:01:06]} 19. Rac1 {[%clk 0:00:46]}  f5 {[%clk 0:01:03]} 20. Bf3 {[%clk 0:00:42]}  h6 {[%clk 0:00:56]} 21. Bd2 {[%clk 0:00:32]}  e4 {[%clk 0:00:41]} 22. Be2 {[%clk 0:00:30]}  Rd7 {[%clk 0:00:28]} 23. Rfd1 {[%clk 0:00:23]}  g5 {[%clk 0:00:25]} 24. Kf1 {[%clk 0:00:24]}  f4 {[%clk 0:00:25]} 25. Bg4 {[%clk 0:00:23]}  e3 {[%clk 0:00:25]} 26. Bb4 {[%clk 0:00:21]}  Rf7 {[%clk 0:00:22]} 27. f3 {[%clk 0:00:18]}  Nf6 {[%clk 0:00:20]} 28. Bxd7+ {[%clk 0:00:19]}  Nxd7 {[%clk 0:00:20]} 29. Ke2 {[%clk 0:00:20]}  Ne5 {[%clk 0:00:20]} 30. b3 {[%clk 0:00:20]}  b6 {[%clk 0:00:19]} 31. Bc3 {[%clk 0:00:20]}  Nd7 {[%clk 0:00:19]} 32. Bd4 {[%clk 0:00:21]}  Kb7 {[%clk 0:00:18]} 33. a3 {[%clk 0:00:21]}  Bb8 {[%clk 0:00:19]} 34. b4 {[%clk 0:00:22]}  c6 {[%clk 0:00:18]} 35. dxc6+ {[%clk 0:00:23]}  Kxc6 {[%clk 0:00:19]} 36. c5 {[%clk 0:00:24]}  b5 {[%clk 0:00:19]} 37. Bb2 {[%clk 0:00:24]}  Be5 {[%clk 0:00:18]} 38. Bxe5 {[%clk 0:00:23]}  Nxe5 {[%clk 0:00:18]} 39. Rd6+ {[%clk 0:00:24]}  Kb7 {[%clk 0:00:18]} 40. Rb6+ {[%clk 0:00:24]}  Ka7 {[%clk 0:00:18]} 41. Rxh6 {[%clk 0:00:25]}  Rc7 {[%clk 0:00:17]} 42. Rh5 {[%clk 0:00:24]}  Rg7 {[%clk 0:00:16]} 43. Rh6 {[%clk 0:00:25]}  Nd7 {[%clk 0:00:16]} 44. Rd6 {[%clk 0:00:25]}  Nb8 {[%clk 0:00:15]} 45. c6 {[%clk 0:00:25]}  Rc7 {[%clk 0:00:15]} 46. Rc5 {[%clk 0:00:24]}  Kb6 {[%clk 0:00:16]} 47. Rxg5 {[%clk 0:00:24]}  Nxc6 {[%clk 0:00:16]} 48. Rc5 {[%clk 0:00:24]}  a5 {[%clk 0:00:16]} 49. g3 {[%clk 0:00:24]}  axb4 {[%clk 0:00:15]} 50. axb4 {[%clk 0:00:25]}  Kb7 {[%clk 0:00:16]} 51. Rdxc6 {[%clk 0:00:23]}  Rxc6 {[%clk 0:00:16]} 52. Rxc6 {[%clk 0:00:24]}  Kxc6 {[%clk 0:00:16]} 53. gxf4 {[%clk 0:00:25]}  Kd5 {[%clk 0:00:16]} 54. Kxe3 {[%clk 0:00:24]}  Kc4 {[%clk 0:00:17]} 55. f5 {[%clk 0:00:25]}  Kxb4 {[%clk 0:00:18]} 56. f6 {[%clk 0:00:25]}  Kc3 {[%clk 0:00:18]} 57. f7 {[%clk 0:00:26]}  b4 {[%clk 0:00:19]} 58. f8=Q {[%clk 0:00:27]}  b3 {[%clk 0:00:19]} 59. Qb8 {[%clk 0:00:28]}  Kc2 {[%clk 0:00:20]} 60. Qxb3+ {[%clk 0:00:28]}  Kxb3 {[%clk 0:00:21]} 61. Kd4 {[%clk 0:00:29]}  Kb4 {[%clk 0:00:21]} 62. f4 {[%clk 0:00:30]}  Kb5 {[%clk 0:00:22]} 63. Kd5 {[%clk 0:00:30]}  Kb6 {[%clk 0:00:22]} 64. Kd6 {[%clk 0:00:31]}  Kb7 {[%clk 0:00:22]} 65. Kd7 {[%clk 0:00:31]}  Kb6 {[%clk 0:00:22]} 66. f5 {[%clk 0:00:32]}  Kc5 {[%clk 0:00:23]} 67. f6 {[%clk 0:00:33]}  Kd4 {[%clk 0:00:24]} 68. f7 {[%clk 0:00:34]}  Ke5 {[%clk 0:00:25]} 69. f8=Q {[%clk 0:00:35]} 1-0


[Site "https://www.chess.com"]

[Event "Titled Tuesday Blitz December 20 Early 2022"]
[White "Witek, Tomasz"]
[Black "Forgacs, Gyula"]
[WhiteFideId "1130056"]
[BlackFideId "701203"]
[WhiteElo "2000"]
[BlackElo "2305"]
[Result "1-0"]
[Round "04"]
[TimeControl "180+2"]
[Date "2022.12.20"]
[WhiteClock "0:00:11"]
[BlackClock "0:00:23"]

1. d4 {[%clk 0:02:55]}  Nf6 {[%clk 0:02:59]} 2. Nf3 {[%clk 0:02:52]}  g6 {[%clk 0:02:59]} 3. Bg5 {[%clk 0:02:51]}  Bg7 {[%clk 0:03:00]} 4. c3 {[%clk 0:02:51]}  O-O {[%clk 0:02:59]} 5. Nbd2 {[%clk 0:02:51]}  d6 {[%clk 0:02:59]} 6. e4 {[%clk 0:02:51]}  c5 {[%clk 0:02:58]} 7. dxc5 {[%clk 0:02:51]}  dxc5 {[%clk 0:02:59]} 8. Bc4 {[%clk 0:02:51]}  Nc6 {[%clk 0:02:59]} 9. Qe2 {[%clk 0:02:39]}  h6 {[%clk 0:02:57]} 10. Be3 {[%clk 0:02:31]}  b6 {[%clk 0:02:53]} 11. h3 {[%clk 0:02:30]}  Bb7 {[%clk 0:02:51]} 12. Bf4 {[%clk 0:02:22]}  e6 {[%clk 0:02:05]} 13. Rd1 {[%clk 0:01:46]}  Qe7 {[%clk 0:02:05]} 14. O-O {[%clk 0:01:39]}  Rad8 {[%clk 0:02:05]} 15. Rfe1 {[%clk 0:01:34]}  Nh5 {[%clk 0:01:50]} 16. Bh2 {[%clk 0:01:32]}  e5 {[%clk 0:01:48]} 17. Bd5 {[%clk 0:01:24]}  Nf4 {[%clk 0:01:44]} 18. Bxf4 {[%clk 0:01:23]}  exf4 {[%clk 0:01:45]} 19. Qb5 {[%clk 0:01:15]}  Ne5 {[%clk 0:01:41]} 20. Nxe5 {[%clk 0:01:12]}  Bxe5 {[%clk 0:01:39]} 21. Nf3 {[%clk 0:01:12]}  Bg7 {[%clk 0:01:32]} 22. a4 {[%clk 0:00:56]}  Qc7 {[%clk 0:01:29]} 23. Bxb7 {[%clk 0:00:41]}  Qxb7 {[%clk 0:01:29]} 24. Rxd8 {[%clk 0:00:42]}  Rxd8 {[%clk 0:01:29]} 25. e5 {[%clk 0:00:42]}  a6 {[%clk 0:01:20]} 26. Qc4 {[%clk 0:00:40]}  g5 {[%clk 0:01:16]} 27. e6 {[%clk 0:00:39]}  fxe6 {[%clk 0:01:15]} 28. Rxe6 {[%clk 0:00:30]}  Qf7 {[%clk 0:01:06]} 29. Qe4 {[%clk 0:00:20]}  b5 {[%clk 0:00:56]} 30. Rxa6 {[%clk 0:00:19]}  bxa4 {[%clk 0:00:53]} 31. Rxa4 {[%clk 0:00:17]}  g4 {[%clk 0:00:35]} 32. hxg4 {[%clk 0:00:17]}  Rd1+ {[%clk 0:00:35]} 33. Kh2 {[%clk 0:00:14]}  h5 {[%clk 0:00:35]} 34. Ra8+ {[%clk 0:00:13]}  Bf8 {[%clk 0:00:35]} 35. Ng5 {[%clk 0:00:11]}  Qf6 {[%clk 0:00:23]} 36. Qh7# {[%clk 0:00:11]} 1-0


[Site "https://www.chess.com"]

[Event "Titled Tuesday Blitz December 20 Early 2022"]
[White "Xiong, Jeffery"]
[Black "Leon-Black"]
[WhiteFideId "2047640"]
[WhiteElo "2692"]
[BlackElo "2634"]
[Result "1-0"]
[Round "04"]
[TimeControl "180+2"]
[Date "2022.12.20"]
[WhiteClock "0:01:20"]
[BlackClock "0:00:21"]

1. e4 {[%clk 0:03:00]}  e5 {[%clk 0:02:59]} 2. Nf3 {[%clk 0:03:01]}  Nc6 {[%clk 0:03:00]} 3. Nc3 {[%clk 0:03:01]}  Nf6 {[%clk 0:03:00]} 4. d4 {[%clk 0:03:02]}  exd4 {[%clk 0:03:01]} 5. Nxd4 {[%clk 0:03:02]}  Bb4 {[%clk 0:03:01]} 6. Nxc6 {[%clk 0:03:03]}  bxc6 {[%clk 0:03:02]} 7. Bd3 {[%clk 0:03:03]}  O-O {[%clk 0:03:02]} 8. O-O {[%clk 0:03:04]}  d5 {[%clk 0:03:03]} 9. exd5 {[%clk 0:03:05]}  cxd5 {[%clk 0:03:04]} 10. h3 {[%clk 0:03:05]}  h6 {[%clk 0:03:04]} 11. Qf3 {[%clk 0:03:05]}  Re8 {[%clk 0:03:00]} 12. Rd1 {[%clk 0:03:02]}  c6 {[%clk 0:02:58]} 13. Bf4 {[%clk 0:03:02]}  Bd6 {[%clk 0:02:57]} 14. b3 {[%clk 0:02:59]}  Rb8 {[%clk 0:02:55]} 15. Na4 {[%clk 0:02:54]}  Qc7 {[%clk 0:02:38]} 16. Bxd6 {[%clk 0:02:53]}  Qxd6 {[%clk 0:02:39]} 17. c4 {[%clk 0:02:42]}  Rb7 {[%clk 0:02:33]} 18. Rac1 {[%clk 0:02:37]}  Rbe7 {[%clk 0:02:32]} 19. cxd5 {[%clk 0:02:37]}  cxd5 {[%clk 0:02:33]} 20. Bf1 {[%clk 0:02:36]}  Ba6 {[%clk 0:02:25]} 21. Bxa6 {[%clk 0:02:15]}  Qxa6 {[%clk 0:02:25]} 22. Nc3 {[%clk 0:02:16]}  Re5 {[%clk 0:02:09]} 23. Nxd5 {[%clk 0:02:01]}  Nxd5 {[%clk 0:02:06]} 24. Rxd5 {[%clk 0:02:02]}  Rxd5 {[%clk 0:01:57]} 25. Qxd5 {[%clk 0:02:03]}  Qxa2 {[%clk 0:01:57]} 26. g4 {[%clk 0:01:34]}  a5 {[%clk 0:01:32]} 27. Rc7 {[%clk 0:01:33]}  Rf8 {[%clk 0:01:30]} 28. Ra7 {[%clk 0:01:33]}  Qa1+ {[%clk 0:01:04]} 29. Kg2 {[%clk 0:01:33]}  Qf6 {[%clk 0:01:05]} 30. Rxa5 {[%clk 0:01:32]}  g6 {[%clk 0:01:02]} 31. Ra8 {[%clk 0:01:32]}  Rxa8 {[%clk 0:00:56]} 32. Qxa8+ {[%clk 0:01:33]}  Kg7 {[%clk 0:00:55]} 33. b4 {[%clk 0:01:21]}  Qd4 {[%clk 0:00:51]} 34. b5 {[%clk 0:01:20]}  h5 {[%clk 0:00:44]} 35. gxh5 {[%clk 0:01:21]}  gxh5 {[%clk 0:00:44]} 36. Qc6 {[%clk 0:01:21]}  Qe5 {[%clk 0:00:36]} 37. b6 {[%clk 0:01:21]}  Qg5+ {[%clk 0:00:36]} 38. Kf1 {[%clk 0:01:21]}  Qf5 {[%clk 0:00:28]} 39. b7 {[%clk 0:01:21]}  Qxh3+ {[%clk 0:00:21]} 40. Qg2+ {[%clk 0:01:20]} 1-0


[Site "https://www.chess.com"]

[Event "Titled Tuesday Blitz December 20 Early 2022"]
[White "aidenzhouu"]
[Black "Zampronha, Wladimir Camilo"]
[BlackFideId "2103087"]
[WhiteElo "2386"]
[BlackElo "2176"]
[Result "1-0"]
[Round "04"]
[TimeControl "180+2"]
[Date "2022.12.20"]
[WhiteClock "0:00:18"]
[BlackClock "0:00:10"]

1. Nf3 {[%clk 0:03:00]}  Nf6 {[%clk 0:02:58]} 2. c4 {[%clk 0:03:00]}  e6 {[%clk 0:02:57]} 3. d4 {[%clk 0:03:01]}  d5 {[%clk 0:02:58]} 4. g3 {[%clk 0:03:01]}  Be7 {[%clk 0:02:57]} 5. Bg2 {[%clk 0:03:01]}  O-O {[%clk 0:02:58]} 6. O-O {[%clk 0:03:02]}  dxc4 {[%clk 0:02:58]} 7. Qc2 {[%clk 0:03:02]}  a6 {[%clk 0:02:58]} 8. Qxc4 {[%clk 0:03:03]}  b5 {[%clk 0:02:57]} 9. Qc2 {[%clk 0:03:04]}  Bb7 {[%clk 0:02:55]} 10. Bf4 {[%clk 0:03:04]}  Nc6 {[%clk 0:02:53]} 11. Rd1 {[%clk 0:03:04]}  Nb4 {[%clk 0:02:37]} 12. Qc1 {[%clk 0:03:03]}  Rc8 {[%clk 0:02:29]} 13. Nc3 {[%clk 0:02:55]}  Nbd5 {[%clk 0:02:26]} 14. Ne5 {[%clk 0:02:50]}  b4 {[%clk 0:02:17]} 15. Nxd5 {[%clk 0:02:44]}  Nxd5 {[%clk 0:02:18]} 16. Nc6 {[%clk 0:02:41]}  Nxf4 {[%clk 0:02:02]} 17. gxf4 {[%clk 0:02:16]}  Bxc6 {[%clk 0:02:01]} 18. Qxc6 {[%clk 0:02:16]}  Qd6 {[%clk 0:01:53]} 19. e3 {[%clk 0:02:13]}  Qxc6 {[%clk 0:01:52]} 20. Bxc6 {[%clk 0:02:14]}  a5 {[%clk 0:01:52]} 21. Rac1 {[%clk 0:02:12]}  Rb8 {[%clk 0:01:52]} 22. b3 {[%clk 0:02:08]}  Bd6 {[%clk 0:01:43]} 23. Rc2 {[%clk 0:02:04]}  Rfd8 {[%clk 0:01:42]} 24. Kg2 {[%clk 0:02:03]}  Kf8 {[%clk 0:01:41]} 25. Kf3 {[%clk 0:02:04]}  f5 {[%clk 0:01:36]} 26. h4 {[%clk 0:01:40]}  Ke7 {[%clk 0:01:33]} 27. Rg1 {[%clk 0:01:35]}  Kf6 {[%clk 0:01:33]} 28. Ba4 {[%clk 0:01:25]}  Rg8 {[%clk 0:01:29]} 29. Rc6 {[%clk 0:01:22]}  Rb6 {[%clk 0:01:21]} 30. Rxb6 {[%clk 0:01:16]}  cxb6 {[%clk 0:01:22]} 31. Rc1 {[%clk 0:01:16]}  Rb8 {[%clk 0:01:18]} 32. Rc6 {[%clk 0:01:16]}  Ke7 {[%clk 0:01:17]} 33. Bb5 {[%clk 0:01:13]}  Rb7 {[%clk 0:01:12]} 34. Bc4 {[%clk 0:01:12]}  Rb8 {[%clk 0:01:06]} 35. Bb5 {[%clk 0:01:07]}  g6 {[%clk 0:01:00]} 36. Ke2 {[%clk 0:00:57]}  Rb7 {[%clk 0:00:48]} 37. Kd3 {[%clk 0:00:56]}  Bc7 {[%clk 0:00:40]} 38. Bc4 {[%clk 0:00:51]}  Bd6 {[%clk 0:00:40]} 39. Ba6 {[%clk 0:00:47]}  Rb8 {[%clk 0:00:39]} 40. Kc4 {[%clk 0:00:45]}  Kd7 {[%clk 0:00:37]} 41. Bb5 {[%clk 0:00:35]}  Rc8 {[%clk 0:00:33]} 42. Rxc8+ {[%clk 0:00:25]}  Kxc8 {[%clk 0:00:34]} 43. d5 {[%clk 0:00:22]}  e5 {[%clk 0:00:34]} 44. fxe5 {[%clk 0:00:23]}  Bxe5 {[%clk 0:00:35]} 45. Be8 {[%clk 0:00:16]}  Bf6 {[%clk 0:00:33]} 46. h5 {[%clk 0:00:16]}  Kd8 {[%clk 0:00:30]} 47. Bf7 {[%clk 0:00:14]}  gxh5 {[%clk 0:00:27]} 48. Bxh5 {[%clk 0:00:15]}  Bh4 {[%clk 0:00:27]} 49. f3 {[%clk 0:00:15]}  Bf2 {[%clk 0:00:27]} 50. Kd4 {[%clk 0:00:16]}  Kc7 {[%clk 0:00:27]} 51. f4 {[%clk 0:00:16]}  Kd6 {[%clk 0:00:26]} 52. Be2 {[%clk 0:00:15]}  Ke7 {[%clk 0:00:22]} 53. Bd3 {[%clk 0:00:16]}  Kf6 {[%clk 0:00:22]} 54. d6 {[%clk 0:00:16]}  Ke6 {[%clk 0:00:20]} 55. d7 {[%clk 0:00:17]}  Kxd7 {[%clk 0:00:21]} 56. Bxf5+ {[%clk 0:00:17]}  Kd6 {[%clk 0:00:17]} 57. Bxh7 {[%clk 0:00:18]}  Bg1 {[%clk 0:00:15]} 58. Bd3 {[%clk 0:00:19]}  Bf2 {[%clk 0:00:15]} 59. Bb5 {[%clk 0:00:19]}  Bg1 {[%clk 0:00:15]} 60. Kd3 {[%clk 0:00:19]}  Bh2 {[%clk 0:00:14]} 61. Ke4 {[%clk 0:00:18]}  Bg3 {[%clk 0:00:12]} 62. Kf3 {[%clk 0:00:18]}  Be1 {[%clk 0:00:12]} 63. e4 {[%clk 0:00:19]}  Bc3 {[%clk 0:00:11]} 64. Bc4 {[%clk 0:00:18]}  Kc5 {[%clk 0:00:11]} 65. e5 {[%clk 0:00:18]}  b5 {[%clk 0:00:11]} 66. Bg8 {[%clk 0:00:19]}  a4 {[%clk 0:00:11]} 67. Ke4 {[%clk 0:00:19]}  a3 {[%clk 0:00:11]} 68. f5 {[%clk 0:00:17]}  Bd2 {[%clk 0:00:10]} 69. f6 {[%clk 0:00:18]}  Bh6 {[%clk 0:00:10]} 70. Kf5 {[%clk 0:00:18]}  Kd4 {[%clk 0:00:10]} 71. e6 {[%clk 0:00:17]}  Kc3 {[%clk 0:00:10]} 72. e7 {[%clk 0:00:18]} 1-0


[Site "https://www.chess.com"]

[Event "Titled Tuesday Blitz December 20 Early 2022"]
[White "bardiya_Daneshvar"]
[Black "Liaqat, Ali ISB"]
[BlackFideId "7807058"]
[WhiteElo "2903"]
[BlackElo "1927"]
[Result "0-1"]
[Round "04"]
[TimeControl "180+2"]
[Date "2022.12.20"]
[WhiteClock "0:00:44"]
[BlackClock "0:00:38"]

1. b3 {[%clk 0:03:00]}  d5 {[%clk 0:03:00]} 2. Bb2 {[%clk 0:03:00]}  c5 {[%clk 0:03:00]} 3. e3 {[%clk 0:02:59]}  a6 {[%clk 0:03:01]} 4. Nf3 {[%clk 0:02:58]}  Nc6 {[%clk 0:03:01]} 5. d4 {[%clk 0:02:59]}  Nf6 {[%clk 0:03:01]} 6. dxc5 {[%clk 0:02:57]}  e6 {[%clk 0:03:00]} 7. a3 {[%clk 0:02:57]}  Bxc5 {[%clk 0:03:00]} 8. b4 {[%clk 0:02:58]}  Ba7 {[%clk 0:02:54]} 9. c4 {[%clk 0:02:58]}  O-O {[%clk 0:02:53]} 10. cxd5 {[%clk 0:02:47]}  exd5 {[%clk 0:02:54]} 11. Be2 {[%clk 0:02:46]}  Bg4 {[%clk 0:02:45]} 12. O-O {[%clk 0:02:43]}  Re8 {[%clk 0:02:45]} 13. h3 {[%clk 0:02:36]}  Bh5 {[%clk 0:02:44]} 14. Re1 {[%clk 0:02:34]}  Qd6 {[%clk 0:02:42]} 15. Nbd2 {[%clk 0:02:31]}  Rad8 {[%clk 0:02:35]} 16. Nf1 {[%clk 0:02:22]}  Ne4 {[%clk 0:01:52]} 17. N3d2 {[%clk 0:02:16]}  Bxe2 {[%clk 0:01:40]} 18. Nxe4 {[%clk 0:02:11]}  Rxe4 {[%clk 0:01:20]} 19. Rxe2 {[%clk 0:02:11]}  d4 {[%clk 0:01:20]} 20. Ng3 {[%clk 0:02:00]}  Ree8 {[%clk 0:01:16]} 21. Nf5 {[%clk 0:01:48]}  Qe6 {[%clk 0:01:01]} 22. e4 {[%clk 0:01:37]}  g6 {[%clk 0:01:01]} 23. Nh6+ {[%clk 0:01:32]}  Kg7 {[%clk 0:01:00]} 24. Ng4 {[%clk 0:01:23]}  h5 {[%clk 0:01:01]} 25. Nh2 {[%clk 0:01:23]}  Ne5 {[%clk 0:00:59]} 26. Rc1 {[%clk 0:01:11]}  Kg8 {[%clk 0:00:59]} 27. Rec2 {[%clk 0:01:06]}  d3 {[%clk 0:00:57]} 28. Rc7 {[%clk 0:01:05]}  d2 {[%clk 0:00:55]} 29. R1c2 {[%clk 0:01:04]}  Nd3 {[%clk 0:00:47]} 30. Qxd2 {[%clk 0:00:48]}  Nxb2 {[%clk 0:00:40]} 31. Qe2 {[%clk 0:00:43]}  Nd3 {[%clk 0:00:39]} 32. Rxb7 {[%clk 0:00:44]}  Bxf2+ {[%clk 0:00:39]} 33. Kh1 {[%clk 0:00:44]}  Qxe4 {[%clk 0:00:38]} 0-1


[Site "https://www.chess.com"]

[Event "Titled Tuesday Blitz December 20 Early 2022"]
[White "bazar-wokzal"]
[Black "Benecke, Torsten"]
[BlackFideId "16240995"]
[WhiteElo "2582"]
[BlackElo "1988"]
[Result "1-0"]
[Round "04"]
[TimeControl "180+2"]
[Date "2022.12.20"]
[WhiteClock "0:00:14"]
[BlackClock "0:00:02"]

1. e4 {[%clk 0:03:00]}  c5 {[%clk 0:03:00]} 2. c3 {[%clk 0:02:59]}  d5 {[%clk 0:02:58]} 3. exd5 {[%clk 0:02:59]}  Qxd5 {[%clk 0:02:59]} 4. d4 {[%clk 0:02:59]}  e6 {[%clk 0:02:58]} 5. a3 {[%clk 0:02:59]}  Nf6 {[%clk 0:02:57]} 6. Nf3 {[%clk 0:02:58]}  cxd4 {[%clk 0:02:54]} 7. cxd4 {[%clk 0:02:59]}  Nc6 {[%clk 0:02:54]} 8. Nc3 {[%clk 0:02:59]}  Qd8 {[%clk 0:02:55]} 9. Be3 {[%clk 0:02:59]}  Be7 {[%clk 0:02:53]} 10. Qc2 {[%clk 0:02:59]}  O-O {[%clk 0:02:52]} 11. Bd3 {[%clk 0:02:59]}  a6 {[%clk 0:02:51]} 12. O-O {[%clk 0:02:57]}  h6 {[%clk 0:02:50]} 13. Rad1 {[%clk 0:02:45]}  Bd7 {[%clk 0:02:50]} 14. Qd2 {[%clk 0:02:42]}  Bd6 {[%clk 0:02:46]} 15. Bxh6 {[%clk 0:02:35]}  gxh6 {[%clk 0:01:53]} 16. Qxh6 {[%clk 0:02:34]}  Re8 {[%clk 0:01:53]} 17. Ng5 {[%clk 0:02:33]}  Bxh2+ {[%clk 0:01:35]} 18. Qxh2 {[%clk 0:02:30]}  Kg7 {[%clk 0:01:34]} 19. Qg3 {[%clk 0:02:18]}  Kf8 {[%clk 0:01:33]} 20. Rfe1 {[%clk 0:02:03]}  Qb8 {[%clk 0:01:16]} 21. Qh4 {[%clk 0:01:57]}  Kg7 {[%clk 0:01:14]} 22. Nh7 {[%clk 0:01:32]}  Ng8 {[%clk 0:00:42]} 23. Re3 {[%clk 0:01:20]}  Nce7 {[%clk 0:00:40]} 24. Rg3+ {[%clk 0:01:08]}  Ng6 {[%clk 0:00:40]} 25. Bxg6 {[%clk 0:01:04]}  fxg6 {[%clk 0:00:41]} 26. Qg5 {[%clk 0:00:51]}  Qxg3 {[%clk 0:00:09]} 27. fxg3 {[%clk 0:00:38]}  Kxh7 {[%clk 0:00:09]} 28. Rf1 {[%clk 0:00:35]}  Rf8 {[%clk 0:00:06]} 29. Rf4 {[%clk 0:00:33]}  Rxf4 {[%clk 0:00:06]} 30. gxf4 {[%clk 0:00:33]}  Rf8 {[%clk 0:00:06]} 31. Ne4 {[%clk 0:00:32]}  Kg7 {[%clk 0:00:05]} 32. Nc5 {[%clk 0:00:31]}  Bc8 {[%clk 0:00:05]} 33. Qe5+ {[%clk 0:00:31]}  Nf6 {[%clk 0:00:04]} 34. g4 {[%clk 0:00:31]}  Kf7 {[%clk 0:00:03]} 35. g5 {[%clk 0:00:29]}  Nd5 {[%clk 0:00:03]} 36. Ne4 {[%clk 0:00:25]}  Ke7 {[%clk 0:00:03]} 37. Qd6+ {[%clk 0:00:21]}  Ke8 {[%clk 0:00:03]} 38. Qb8 {[%clk 0:00:19]}  Ke7 {[%clk 0:00:03]} 39. Qd6+ {[%clk 0:00:17]}  Ke8 {[%clk 0:00:03]} 40. Nc5 {[%clk 0:00:15]}  Rxf4 {[%clk 0:00:02]} 41. Nxe6 {[%clk 0:00:14]} 1-0


[Site "https://www.chess.com"]